bitfinex/quotes_ETHUSD_20260202
["timestamp","ask_amount","ask_price","bid_price","bid_amount"]
[1770048561649,0.90177779,2380.9,2380.0,1.05039907]
[1770048561958,0.90177779,2380.9,2379.9,1.05042923]
[1770048562127,0.90177779,2380.9,2380.1,1.05036379]
[1770048562327,0.90177779,2380.9,2380.0,1.05038597]
[1770048562624,1.05011131,2380.7,2380.1,0.52521805]
[1770048562840,1.05011131,2380.7,2379.2,12.49585649]
[1770048563141,1.05011131,2380.7,2378.3,0.02108726]
[1770048563142,1.1282001,2380.3,2378.8,0.882]
[1770048563322,9.93302747,2380.0,2378.8,0.882]
[1770048563523,0.90225882,2379.9,2378.9,1.0508873]
[1770048563759,1.50448337,2380.2,2378.8,13.37785649]
[1770048563760,0.90225882,2379.8,2378.8,14.42877172]
[1770048563945,0.90225882,2379.7,2378.9,1.44287717]
[1770048564149,1.1282001,2380.0,2378.9,1.44287717]
[1770048564450,2.03091682,2380.0,2379.1,1.0508133]
[1770048564649,1.05028777,2380.3,2379.1,13.54666979]
[1770048564818,1.05027787,2380.4,2379.1,13.54666979]
[1770048565019,0.90240127,2380.3,2379.2,1.77499399]
[1770048565223,1.05027787,2380.4,2379.3,0.881]
[1770048565423,1.05027787,2380.4,2379.3,13.37685649]
[1770048565719,1.1282001,2380.7,2379.3,13.37685649]
[1770048565720,1.05019432,2380.6,2379.3,13.37685649]
[1770048565940,0.90233928,2380.5,2379.3,13.37685649]
[1770048566144,0.90233928,2380.4,2379.4,1.51518505]
[1770048566459,1.05019432,2380.6,2379.4,1.51518505]
[1770048566625,0.90235837,2380.5,2379.4,1.51518505]
[1770048566825,0.90236491,2380.4,2379.5,1.05064089]
[1770048567128,1.05019432,2380.6,2379.5,1.05064089]
[1770048567332,0.90238193,2380.5,2379.6,0.67683895]
[1770048567541,0.90238193,2380.4,2379.6,0.67683895]
[1770048567827,3.47489431,2380.6,2379.6,0.67683895]
[1770048568030,0.9025807,2380.5,2379.4,2.56583713]
[1770048568348,0.9025807,2380.4,2379.4,15.06169362]
[1770048568649,0.90289968,2380.3,2379.4,15.06169362]
[1770048568849,1.0503319,2380.2,2379.4,15.06169362]
[1770048569057,0.90294854,2380.1,2379.2,1.77499399]
[1770048569238,0.90294854,2380.0,2379.1,1.0507882]
[1770048569552,1.0503319,2380.2,2379.0,1.93181863]
[1770048569753,1.1282001,2380.0,2378.8,0.001]
[1770048569927,1.1282001,2379.9,2378.8,1.05192172]
[1770048570250,0.9033066,2379.8,2378.8,0.001]
[1770048570459,0.9033066,2379.7,2378.8,1.5606266]
[1770048570640,1.1282001,2379.9,2378.8,0.50969584]
[1770048570843,1.1282001,2379.6,2378.6,0.001]
[1770048571052,1.1282001,2379.6,2378.5,0.001]
[1770048571053,1.1282001,2379.4,2378.5,0.001]
[1770048571298,1.2306001,2379.0,2377.8,1.73076835]
[1770048571427,1.2306001,2379.0,2378.1,1.05122309]
[1770048571428,0.90341199,2378.9,2378.1,1.05122309]
[1770048571625,0.90341199,2378.8,2377.9,16.70119695]
[1770048571822,0.1024,2379.0,2378.0,2.89446609]
[1770048572162,1.1282001,2379.1,2378.3,1.05116891]
[1770048572476,2.17233689,2380.6,2378.7,1.05098426]
[1770048572477,1.1282001,2379.6,2378.7,1.05098426]
[1770048572624,1.1282001,2379.7,2378.7,1.05096452]
[1770048572823,1.1282001,2379.8,2378.8,13.54677632]
[1770048573074,0.90234208,2379.7,2378.9,1.77507405]
[1770048573354,0.21972402,2379.8,2378.9,1.77507405]
[1770048573572,1.1282001,2380.2,2378.9,14.2920178]
[1770048573727,1.05026358,2380.4,2378.9,1.77507405]
[1770048573931,1.05026358,2380.4,2378.9,14.2920178]
[1770048574127,2.17834282,2380.7,2379.3,12.49585649]
[1770048574341,2.17834282,2380.7,2379.4,13.37685649]
[1770048574539,1.05014272,2380.7,2379.4,13.37685649]
[1770048574727,0.0011,2381.1,2379.9,12.51694375]
[1770048574927,0.0011,2381.1,2380.0,1.35674522]
[1770048575139,0.0011,2381.1,2380.0,14.73360171]
[1770048576832,0.0011,2381.1,2380.1,1.05037603]
[1770048577035,0.0011,2381.1,2380.1,13.54623252]
[1770048577434,4.19879136,2381.7,2380.1,13.54623252]
[1770048577435,1.04946429,2382.2,2380.8,12.49585649]
[1770048577641,5.32710045,2382.3,2380.9,14.62855087]
[1770048577642,1.05051891,2382.3,2380.9,14.62855087]
[1770048578955,10.98354638,2382.3,2381.0,1.049979]
[1770048579325,1.05051891,2382.3,2381.0,13.54583549]
[1770048581048,0.1035,2382.3,2381.0,12.49585649]
[1770048581257,0.1035,2382.3,2380.9,2.30170872]
[1770048581258,1.2317001,2382.3,2380.9,2.30170872]
[1770048581456,0.54291563,2382.2,2380.9,1.05001787]
[1770048581668,0.54291563,2382.2,2380.8,0.881]
[1770048581969,1.2317001,2382.1,2380.6,1.05014926]
[1770048582127,0.1024,2381.9,2380.5,13.37685649]
[1770048582331,0.0011,2382.1,2381.0,13.54583507]
[1770048582643,0.0011,2382.1,2381.1,13.37685649]
[1770048583057,0.0011,2382.1,2381.0,1.93097298]
[1770048583359,0.0011,2382.1,2381.1,1.04992807]
[1770048584144,0.0011,2382.1,2381.1,13.54578456]
[1770048584352,0.0011,2382.1,2381.2,1.86265242]
[1770048584554,0.0011,2382.1,2381.2,14.35850891]
[1770048585361,0.0011,2382.1,2381.3,1.04984672]
[1770048585556,0.0011,2382.1,2381.3,13.54570321]
[1770048586738,0.0011,2382.1,2381.3,12.49585649]
[1770048586940,0.0011,2382.1,2381.2,1.04988549]
[1770048587169,0.0011,2382.1,2381.2,13.54574198]
[1770048587364,0.0011,2382.1,2381.2,15.82832883]
[1770048588159,0.0011,2382.1,2381.2,2.28258685]
[1770048588863,0.0011,2382.1,2380.9,4.19997204]
[1770048588864,0.1024,2382.0,2380.6,12.56889127]
[1770048589063,0.1024,2382.0,2380.8,4.200246]
[1770048589240,0.0011,2382.1,2381.1,1.04991062]
[1770048589938,0.1024,2382.0,2380.7,12.56889127]
[1770048590143,0.1024,2381.8,2380.6,0.881]
[1770048590345,0.1024,2381.8,2380.0,0.001]
[1770048590346,0.1024,2381.5,2380.0,0.001]
[1770048590555,0.1024,2381.3,2380.1,1.05034779]
[1770048590782,2.14879658,2381.5,2380.2,1.05132008]
[1770048590976,2.14879658,2381.5,2380.2,12.66073822]
[1770048590977,1.02689978,2381.5,2380.2,12.66073822]
[1770048591277,0.881,2381.8,2380.5,1.05016616]
[1770048591474,1.0496704,2381.7,2380.4,12.82898187]
[1770048592174,1.0496704,2381.7,2380.2,1.93229345]
[1770048592376,10.93240282,2381.6,2380.2,1.932318]
[1770048592573,0.1024,2381.4,2380.2,0.882]
[1770048592871,1.19820732,2381.5,2380.4,11.77873822]
[1770048593170,1.0496704,2381.7,2380.4,11.77873822]
[1770048593549,1.0496704,2381.7,2380.5,12.82893775]
[1770048593883,5.18208161,2381.8,2380.5,12.82893775]
[1770048593884,2.03303531,2381.8,2380.5,12.82893775]
[1770048594082,0.0011,2381.7,2380.5,12.82893775]
[1770048595394,0.0011,2381.7,2380.4,1.05021461]
[1770048595562,0.62447406,2381.7,2380.5,13.3540438]
[1770048596084,0.1024,2381.4,2380.2,0.001]
[1770048596287,10.83064395,2381.3,2380.2,0.001]
[1770048596472,0.1024,2381.1,2380.2,0.001]
[1770048597066,0.881,2381.2,2380.2,11.77973822]
[1770048597394,0.881,2381.2,2380.3,2.2282227]
[1770048597569,1.0499349,2381.1,2380.3,2.2282227]
[1770048597904,11.67939833,2381.7,2380.4,11.77873822]
[1770048597905,0.0011,2381.7,2380.4,11.77873822]
[1770048598106,1.050782,2381.7,2380.4,11.77873822]
[1770048598399,1.05077651,2381.7,2380.6,11.77873822]
[1770048598561,0.0011,2381.7,2380.7,12.95872077]
[1770048598756,0.0011,2381.7,2380.8,0.881]
[1770048599471,0.0011,2381.7,2381.0,11.77873822]
[1770048600071,0.0011,2381.7,2380.9,1.0500231]
[1770048600478,0.0011,2382.3,2381.3,11.79982548]
[1770048600663,2.08623334,2382.6,2381.5,11.77873822]
[1770048600869,2.08623334,2382.6,2381.4,1.17998255]
[1770048601077,2.08623334,2382.6,2381.2,0.881]
[1770048601078,2.96723334,2382.6,2381.2,0.881]
[1770048601396,0.1024,2382.2,2380.6,13.20927798]
[1770048601594,1.0495382,2382.0,2380.6,9.00881231]
[1770048601800,3.966031,2381.3,2380.2,0.001]
[1770048601983,1.77916006,2381.2,2380.2,0.001]
[1770048602190,0.89816006,2381.1,2380.2,0.001]
[1770048602498,0.1024,2380.8,2380.0,0.001]
[1770048602706,0.1024,2380.8,2379.5,1.05060421]
[1770048602707,1.1218968,2380.6,2379.5,1.05060421]
[1770048602904,0.89816006,2380.7,2379.7,4.20219386]
[1770048603070,1.1218968,2381.0,2379.7,1.05055259]
[1770048603262,0.90206523,2381.0,2379.7,12.82929081]
[1770048603594,1.0500672,2380.8,2379.7,12.82929081]
[1770048603795,0.61523945,2380.7,2379.7,2.8150481]
[1770048603996,0.90312769,2380.6,2379.7,1.05052773]
[1770048604302,2.171964,2380.8,2379.7,1.93152773]
[1770048604478,0.903392,2380.7,2379.7,1.93152773]
[1770048604799,2.21082428,2381.2,2380.4,11.77873822]
[1770048604965,1.0496704,2381.7,2380.1,11.77873822]
[1770048605165,1.04958226,2381.9,2380.4,0.881]
[1770048605366,0.881,2381.8,2380.2,1.17787382]
[1770048605579,1.0496704,2381.7,2380.2,3.10918472]
[1770048605781,0.1024,2381.4,2379.5,11.77873822]
[1770048605980,1.0496704,2381.7,2380.2,1.05032252]
[1770048606167,5.07968161,2381.8,2380.2,13.71006074]
[1770048606168,0.881,2381.8,2380.2,13.71006074]
[1770048606373,1.04958226,2381.9,2380.4,11.77873822]
[1770048606574,1.0495626,2382.0,2380.4,11.77873822]
[1770048606780,1.04952577,2382.1,2380.6,11.77873822]
[1770048607586,4.1978458,2382.2,2380.8,1.0500672]
[1770048607901,0.0011,2381.7,2380.7,1.05110905]
[1770048608470,0.0011,2381.7,2380.7,1.05108667]
[1770048609315,1.93045008,2382.3,2380.7,1.05108667]
[1770048609316,1.036945,2382.6,2381.7,11.77873822]
[1770048609602,1.036945,2382.6,2381.9,1.04958226]
[1770048610299,1.036945,2382.6,2381.8,6.25931161]
[1770048610300,1.036945,2382.6,2381.8,2.22959397]
[1770048610506,2.08622242,2382.6,2381.6,1.0497045]
[1770048610822,2.08622242,2382.6,2381.2,1.04986456]
[1770048610976,2.08622242,2382.6,2381.1,5.08061501]
[1770048610977,5.713701,2382.4,2381.1,0.881]
[1770048611300,0.71641483,2382.5,2381.1,0.881]
[1770048611604,1.04936198,2382.4,2381.1,0.881]
[1770048611776,1.04936198,2382.4,2380.7,0.001]
[1770048611777,9.16921623,2381.9,2380.7,0.001]
[1770048612106,2.468252,2382.3,2380.8,1.05003585]
[1770048612107,0.91692162,2381.8,2380.8,1.05003585]
[1770048612280,0.881,2382.0,2380.7,1.05107813]
[1770048612489,0.881,2382.0,2380.7,4.20143916]
[1770048612675,0.881,2382.0,2380.9,1.05000108]
[1770048612879,0.881,2382.0,2380.9,1.0500225]
[1770048613075,0.881,2382.0,2380.7,0.001]
[1770048613301,0.881,2382.0,2380.8,1.05003476]
[1770048613602,1.04958226,2381.9,2380.8,0.52514538]
[1770048613829,0.1024,2381.8,2380.7,1.05110789]
[1770048613991,0.1024,2381.8,2380.7,1.05107843]
[1770048614180,0.1024,2381.8,2380.7,0.001]
[1770048614377,2.108553,2381.7,2380.5,0.001]
[1770048614613,10.21879849,2381.9,2380.5,0.001]
[1770048614614,0.1024,2381.4,2380.5,0.001]
[1770048614782,0.88,2381.3,2380.5,0.001]
[1770048615896,1.92987698,2381.3,2380.5,0.001]
[1770048616198,0.88,2381.3,2380.5,0.001]
[1770048617999,1.04955744,2382.0,2380.5,11.77973822]
[1770048618211,0.90290109,2381.9,2380.5,11.77973822]
[1770048618415,2.08625787,2382.6,2380.8,11.77873822]
[1770048618615,1.53119612,2382.5,2381.0,11.77873822]
[1770048618790,9.16921623,2382.3,2380.9,1.17998255]
[1770048618992,0.90286077,2382.2,2380.5,14.7368]
[1770048619213,9.16921623,2381.9,2380.5,11.77973822]
[1770048619416,1.78386077,2381.8,2380.5,11.77973822]
[1770048619619,0.881,2381.8,2380.5,11.77973822]
[1770048619823,0.881,2381.8,2380.6,1.3799134]
[1770048620020,1.95244682,2381.7,2380.6,2.43004218]
[1770048620185,0.90277642,2381.6,2380.5,0.001]
[1770048620387,0.90277642,2381.5,2380.5,0.001]
[1770048620619,0.90277642,2381.4,2380.5,0.001]
[1770048620805,0.90277642,2381.3,2380.7,0.001]
[1770048621016,0.90277642,2381.2,2380.5,0.001]
[1770048621203,0.881,2381.1,2380.5,0.001]
[1770048621390,0.881,2381.1,2380.6,1.0501368]
[1770048621592,0.881,2381.1,2380.6,1.05015108]
[1770048621915,0.8821,2381.7,2380.5,4.20167795]
[1770048622120,0.90311955,2381.6,2380.6,0.52518775]
[1770048622286,0.90311955,2381.5,2380.6,0.52518775]
[1770048622487,2.42241242,2381.7,2380.6,0.52518775]
[1770048622698,0.1024,2381.3,2380.1,1.05036814]
[1770048622995,0.90319481,2381.6,2379.9,1.05043941]
[1770048622996,9.27161623,2381.1,2379.9,1.05043941]
[1770048623195,15.72949094,2381.6,2380.1,1.05034462]
[1770048623196,1.78419481,2381.0,2380.1,1.05034462]
[1770048623518,0.90319481,2380.9,2379.9,1.05043021]
[1770048623719,0.881,2381.0,2379.8,4.2018635]
[1770048623720,0.90319481,2380.8,2380.0,1.57564818]
[1770048623933,0.881,2381.4,2380.1,1.05037603]
[1770048624092,0.881,2381.4,2380.1,13.66111014]
[1770048624495,0.90290605,2381.3,2380.1,13.66111014]
[1770048624714,0.881,2381.4,2380.1,13.66111014]
[1770048624921,0.9029084,2381.3,2380.2,1.83879648]
[1770048625106,1.0053084,2381.2,2380.0,1.5756428]
[1770048625312,0.9029084,2381.1,2380.0,1.5756428]
[1770048625511,0.881,2381.4,2380.0,1.5756428]
[1770048625820,0.9028122,2381.3,2380.0,0.52522937]
[1770048626120,1.95270301,2381.2,2380.0,1.57564009]
[1770048626321,0.1024,2381.0,2379.8,1.05049664]
[1770048626622,0.1024,2381.0,2379.5,0.001]
[1770048626623,0.9028122,2380.9,2379.9,1.05046224]
[1770048626817,0.9028122,2380.9,2379.5,0.001]
[1770048626818,0.9028122,2380.9,2379.8,4.20193616]
[1770048627022,0.9028122,2380.9,2380.0,1.05041809]
[1770048627321,1.15223467,2381.4,2380.0,1.05041809]
[1770048627495,2.31882562,2381.3,2380.1,0.52521811]
[1770048627696,0.881,2381.3,2380.1,13.13595222]
[1770048627894,0.881,2381.3,2380.3,12.61073411]
[1770048628641,1.93084921,2381.3,2380.2,1.0503319]
[1770048629339,0.90277193,2381.2,2380.2,1.0503319]
[1770048629509,1.93084921,2381.3,2380.2,1.0503319]
[1770048629823,1.515782,2381.2,2380.3,0.57768776]
[1770048630025,1.0499349,2381.1,2380.3,0.57768776]
[1770048630223,0.90288649,2381.0,2379.8,1.05048852]
[1770048630400,0.90288649,2380.9,2379.8,1.05048852]
[1770048630601,0.90288649,2380.8,2379.8,1.05048852]
[1770048630925,0.90288649,2380.8,2379.5,0.001]
[1770048630926,0.90300324,2380.7,2379.6,1.05059262]
[1770048631122,1.78400324,2380.6,2379.8,1.05048752]
[1770048631349,0.90300324,2380.5,2379.9,1.05044558]
[1770048631542,0.881,2380.9,2380.0,1.05041975]
[1770048631837,0.881,2380.9,2380.1,1.05037552]
[1770048632014,1.93105539,2380.9,2379.7,1.05055259]
[1770048632214,0.61310026,2380.8,2379.8,1.83890666]
[1770048632409,0.881,2380.9,2379.8,1.83890666]
[1770048632615,0.881,2380.9,2379.8,14.44964077]
[1770048632833,0.881,2381.4,2380.1,0.001]
[1770048633142,0.90266185,2381.3,2380.1,0.001]
[1770048633330,1.78366185,2381.2,2380.1,0.001]
[1770048633638,0.90266185,2381.1,2380.1,0.001]
[1770048633844,1.09528781,2381.0,2380.1,0.001]
[1770048634043,10.32168343,2380.8,2379.5,0.001]
[1770048634226,0.90266185,2380.7,2379.6,1.05058969]
[1770048634425,0.90266185,2380.7,2379.6,13.6613238]
[1770048634738,1.09528781,2381.0,2379.6,13.6613238]
[1770048634941,0.90272074,2380.9,2379.7,1.78647108]
[1770048635163,4.19975255,2381.1,2379.7,14.39720519]
[1770048635164,1.0499349,2381.1,2379.7,14.39720519]
[1770048635344,0.881,2381.2,2379.7,14.39720519]
[1770048636113,0.881,2381.2,2379.9,12.61073411]
[1770048636625,1.93089357,2381.2,2379.9,12.61073411]
[1770048636825,0.61304568,2381.1,2380.0,1.36612426]
[1770048637126,1.51567398,2381.1,2380.0,1.36612426]
[1770048637319,0.61304568,2381.1,2380.0,1.36612426]
[1770048637520,0.90265312,2381.0,2379.7,2.83700321]
[1770048637720,0.90265312,2380.9,2379.7,1.05053213]
[1770048638020,0.90265312,2380.8,2379.7,1.05053213]
[1770048638220,1.05011131,2380.7,2379.5,1.05164089]
[1770048638934,1.05011131,2380.7,2379.5,0.001]
[1770048638935,18.68957854,2380.6,2379.5,0.001]
[1770048639138,4.417989,2380.3,2378.9,0.001]
[1770048639314,0.90249031,2380.2,2378.9,1.05190319]
[1770048639517,0.90249031,2380.1,2378.9,0.001]
[1770048639720,0.1024,2379.8,2378.0,16.8159279]
[1770048639919,1.78349031,2379.7,2378.3,4.20462091]
[1770048640162,0.1024,2379.9,2378.6,12.61073411]
[1770048640452,0.881,2380.0,2378.6,12.61073411]
[1770048641020,0.90198724,2379.9,2378.6,12.61073411]
[1770048641222,0.881,2380.0,2378.6,12.61073411]
[1770048642065,0.881,2380.0,2378.8,12.61073411]
[1770048642219,0.881,2380.0,2378.9,15.0108134]
[1770048642719,1.93142677,2380.0,2378.9,2.40007929]
[1770048642916,1.93142677,2380.0,2378.9,1.05090588]
[1770048643335,1.93142677,2380.0,2378.7,1.05099284]
[1770048643336,0.8998539,2379.9,2378.7,1.05099284]
[1770048643521,0.8998539,2379.8,2378.7,1.05099284]
[1770048643839,2.336811,2379.6,2378.3,1.05112717]
[1770048644020,0.8998539,2379.5,2378.6,1.05100126]
[1770048644225,3.43597653,2380.0,2378.3,1.051171]
[1770048644226,1.05050844,2379.8,2378.3,1.051171]
[1770048644451,1.43391035,2379.7,2378.4,1.78667403]
[1770048644636,0.89841613,2379.6,2378.4,1.78667403]
[1770048645257,1.05050844,2379.8,2378.4,14.39740814]
[1770048646153,1.15289736,2379.9,2379.1,0.001]
[1770048646841,0.1024,2380.4,2379.1,0.001]
[1770048647044,0.881,2380.2,2379.1,0.001]
[1770048648163,1.05037603,2380.1,2379.1,0.001]
[1770048648766,3.758417,2379.9,2378.9,0.001]
[1770048648970,0.8985426,2379.8,2378.9,0.001]
[1770048649135,0.1024,2380.0,2378.9,0.001]
[1770048649330,0.8991184,2379.9,2378.9,0.001]
[1770048649541,2.07340475,2380.0,2378.9,0.001]
[1770048649542,0.8991184,2379.8,2378.9,0.001]
[1770048649833,2.07340475,2380.0,2378.9,0.001]
[1770048650036,0.89917543,2379.9,2378.9,0.001]
[1770048650278,1.94970928,2379.8,2378.9,0.001]
[1770048650559,0.881,2379.8,2378.9,0.001]
[1770048650770,0.881,2379.8,2378.9,12.283142]
[1770048650931,0.881,2379.8,2379.0,1.2283142]
[1770048651259,1.0500771,2380.8,2379.1,13.163142]
[1770048651459,1.9310771,2380.8,2379.1,13.163142]
[1770048651629,0.881,2380.8,2379.1,13.163142]
[1770048652446,1.93110203,2380.8,2379.3,12.282142]
[1770048652646,0.881,2380.8,2379.4,13.61543354]
[1770048653036,1.93110769,2380.8,2379.4,13.61543354]
[1770048653444,0.881,2380.8,2379.4,13.61543354]
[1770048653661,0.0011,2380.9,2379.4,13.61543354]
[1770048654365,0.0011,2380.9,2379.5,1.05064089]
[1770048654564,0.0011,2380.9,2379.6,12.9407916]
[1770048654775,0.0011,2380.9,2379.8,12.282142]
[1770048655147,0.0011,2381.6,2379.8,14.53783805]
[1770048655345,0.0011,2381.9,2380.3,12.282142]
[1770048655591,0.0011,2381.9,2380.5,12.282142]
[1770048655744,0.0011,2381.9,2380.7,12.282142]
[1770048656443,0.0011,2381.9,2380.9,12.282142]
[1770048656639,0.0011,2381.9,2381.0,13.163142]
[1770048658287,0.0011,2382.1,2381.0,13.163142]
[1770048658466,0.0011,2382.1,2381.2,12.282142]
[1770048658787,2.08622191,2382.6,2381.3,13.61534969]
[1770048658995,1.036945,2382.6,2381.3,13.61534969]
[1770048659954,2.08623021,2382.6,2381.3,13.61534969]
[1770048660155,0.0011,2381.7,2381.3,13.61534969]
[1770048660396,4.1955108,2383.7,2381.5,12.282142]
[1770048660674,0.21954317,2384.6,2382.3,12.282142]
[1770048660873,9.1662576,2385.0,2382.6,12.282142]
[1770048661045,1.04829416,2384.9,2383.0,12.282142]
[1770048661245,0.881,2385.2,2383.6,0.02108726]
[1770048661476,0.881,2385.2,2384.0,0.02108726]
[1770048661693,1.22832985,2385.7,2384.3,0.02108726]
[1770048661875,1.22832985,2385.7,2383.8,12.282142]
[1770048661876,2.776118,2385.5,2383.8,12.282142]
[1770048662046,2.776118,2385.5,2382.6,0.02108726]
[1770048662047,9.1662576,2385.2,2383.3,12.282142]
[1770048662243,3.469406,2385.0,2382.6,12.282142]
[1770048662494,3.469406,2385.0,2382.7,0.881]
[1770048662495,0.1024,2384.5,2382.7,0.881]
[1770048662785,21.33323167,2384.3,2382.6,1.04926677]
[1770048662969,12.25207312,2383.8,2382.3,1.04940584]
[1770048663149,0.1024,2384.0,2382.6,1.04926503]
[1770048663989,3.02456317,2384.2,2382.6,1.04926503]
[1770048664479,1.04861373,2384.1,2382.5,4.1970956]
[1770048664654,12.12090282,2384.0,2382.4,1.93033787]
[1770048664845,13.33545448,2383.9,2382.4,1.93033787]
[1770048665050,1.31695166,2383.9,2382.4,1.93033787]
[1770048665274,0.1024,2384.0,2382.4,1.93033787]
[1770048665477,12.12090282,2384.0,2382.4,1.93033787]
[1770048665775,4.655852,2383.9,2382.4,1.93035685]
[1770048665979,12.12090282,2384.0,2382.4,1.04935685]
[1770048666180,12.01850282,2383.7,2382.4,1.04934818]
[1770048666565,1.04883369,2383.6,2381.9,16.48039243]
[1770048666770,1.04883369,2383.6,2381.9,13.33172426]
[1770048667750,1.04881968,2383.7,2381.9,13.33172426]
[1770048668577,4.19500369,2383.8,2381.9,13.33172426]
[1770048668777,4.19500369,2383.8,2382.1,12.282142]
[1770048669077,2.36568598,2383.9,2382.2,12.30322926]
[1770048669278,1.04873432,2383.9,2382.2,12.30322926]
[1770048669450,5.07540065,2384.2,2382.6,12.282142]
[1770048669648,1.04861373,2384.1,2382.7,0.88]
[1770048670583,1.92959524,2384.2,2382.8,1.04918583]
[1770048670793,0.61238727,2384.1,2382.9,0.61259292]
[1770048672390,0.0011,2384.0,2382.9,0.61259292]
[1770048672562,0.0011,2384.0,2383.0,1.04909777]
[1770048673071,0.0011,2384.0,2383.0,13.35232703]
[1770048673384,0.0011,2384.0,2383.0,1.04909777]
[1770048673559,0.0011,2384.0,2382.9,1.04911269]
[1770048673879,0.0011,2384.0,2382.3,0.881]
[1770048674068,12.01960282,2384.0,2382.9,1.04913104]
[1770048674269,0.0011,2384.0,2382.9,1.04913104]
[1770048674662,0.0011,2384.0,2382.8,4.1965672]
[1770048674862,0.0011,2384.0,2382.7,4.1965672]
[1770048676351,0.0011,2384.0,2382.8,12.282142]
[1770048676580,0.0011,2384.0,2383.0,1.04909777]
[1770048677188,12.01960282,2384.0,2382.9,1.0491352]
[1770048677591,12.01960282,2384.0,2382.4,5.51364361]
[1770048677592,0.1024,2383.9,2382.4,1.3163142]
[1770048677765,12.01850282,2383.8,2382.6,1.04924944]
[1770048677972,0.1024,2383.9,2382.7,1.049222]
[1770048678168,0.1024,2383.9,2382.3,0.001]
[1770048678371,12.12090282,2383.9,2382.6,1.04924669]
[1770048679067,1.0487457,2383.8,2382.3,0.001]
[1770048679369,1.73646313,2383.7,2382.3,0.61382389]
[1770048679565,0.1024,2383.6,2382.3,0.61382389]
[1770048679767,8.718093,2383.5,2382.3,0.001]
[1770048679963,0.2335703,2383.4,2382.3,0.001]
[1770048680287,0.88,2383.3,2382.3,0.001]
[1770048681161,1.92897602,2383.3,2382.3,0.001]
[1770048681475,0.88,2383.3,2382.3,12.11939021]
[1770048681664,5.07491797,2383.9,2382.4,13.33032923]
[1770048682587,12.3520245,2383.8,2382.4,1.21193902]
[1770048682889,0.1024,2383.7,2382.3,0.001]
[1770048683082,1.0489217,2383.4,2382.3,0.001]
[1770048683279,4.276128,2383.3,2382.3,0.001]
[1770048683590,14.23266089,2383.2,2382.0,0.001]
[1770048683787,13.3344245,2383.2,2382.0,0.001]
[1770048683964,1.33344245,2383.1,2382.0,0.001]
[1770048684165,0.88,2383.2,2382.0,12.11939021]
[1770048684694,0.0011,2384.0,2382.5,12.13947747]
[1770048684892,0.0011,2384.0,2382.5,13.01947747]
[1770048684893,1.04976678,2384.0,2382.5,13.01947747]
[1770048685265,0.0011,2384.0,2382.7,4.41839021]
[1770048685585,0.61364081,2384.0,2382.8,0.54676641]
[1770048685781,0.61364081,2384.0,2382.6,1.0492739]
[1770048686185,0.90045455,2383.9,2382.6,1.0492739]
[1770048686395,0.61364081,2384.0,2382.6,1.0492739]
[1770048686574,0.90093866,2383.9,2382.6,1.0492739]
[1770048686888,0.61364081,2384.0,2382.6,1.0492739]
[1770048687103,0.61364081,2384.0,2382.7,0.61263695]
[1770048687283,1.9502949,2383.9,2382.8,1.04918583]
[1770048687477,1.0487017,2383.9,2382.8,1.04918583]
[1770048687701,0.61364081,2384.0,2382.8,1.04918583]
[1770048687896,1.04978456,2384.0,2382.8,1.04918583]
[1770048689296,1.0487457,2383.8,2382.8,1.04918583]
[1770048689595,0.90261337,2383.9,2382.8,1.04918583]
[1770048689596,1.04873061,2383.9,2382.8,1.04918583]
[1770048689898,1.04978816,2384.0,2382.8,1.04918583]
[1770048690103,0.90271329,2383.9,2382.8,1.04918583]
[1770048690395,0.61469799,2383.9,2382.9,0.58585661]
[1770048691297,1.0487457,2383.8,2383.0,1.04909777]
[1770048691796,0.90355236,2383.7,2382.9,0.58585661]
[1770048692006,0.90355236,2383.6,2382.9,1.04913822]
[1770048692295,5.92083841,2383.9,2382.9,1.04913822]
[1770048692296,1.66341458,2383.9,2382.9,1.04913822]
[1770048692498,0.90429315,2383.8,2383.0,0.52457054]
[1770048692801,0.90429315,2383.7,2383.0,0.52457054]
[1770048693000,1.66341458,2383.9,2382.9,1.04913822]
[1770048693174,0.9042901,2383.8,2382.6,4.1965672]
[1770048693375,0.9042901,2383.7,2382.6,4.1965672]
[1770048693578,1.11235005,2384.0,2382.9,12.13947747]
[1770048693579,0.0011,2384.0,2382.9,12.13947747]
[1770048693777,0.0011,2384.0,2383.0,13.35342522]
[1770048694076,0.0011,2384.0,2383.1,0.88]
[1770048694274,0.0011,2384.0,2383.1,0.90108726]
[1770048694471,0.0011,2384.0,2383.1,0.88]
[1770048694685,1.04976283,2384.0,2383.2,1.4212338]
[1770048694899,0.0011,2384.0,2382.7,13.01947747]
[1770048695099,0.0011,2384.0,2383.0,0.02108726]
[1770048695301,0.0011,2384.0,2383.1,1.04905375]
[1770048696875,0.0011,2384.2,2383.4,0.02108726]
[1770048697076,0.0011,2384.2,2383.5,0.88]
[1770048697275,1.04819262,2385.1,2383.8,1.0487457]
[1770048697801,13.40125682,2385.2,2383.8,1.0487457]
[1770048698002,1.11235005,2385.2,2383.8,1.0487457]
[1770048698209,0.0011,2385.2,2384.3,0.02108726]
[1770048698710,1.04923506,2385.2,2383.8,1.0487457]
[1770048699011,12.87620006,2385.1,2383.9,1.73621187]
[1770048699181,12.3520245,2384.7,2383.1,0.88]
[1770048699501,1.11125005,2384.5,2383.0,1.04909777]
[1770048699704,1.11125005,2384.6,2383.1,0.02108726]
[1770048699880,0.88,2384.5,2383.0,1.04909777]
[1770048700231,14.34327455,2384.5,2383.1,0.52455959]
[1770048700410,12.3520245,2384.3,2382.9,1.04912482]
[1770048700704,12.3520245,2384.2,2382.9,1.04912482]
[1770048700902,13.46327455,2384.2,2382.9,1.04912482]
[1770048701312,1.04861373,2384.1,2382.7,4.1965672]
[1770048701483,13.40063823,2384.1,2382.7,4.1965672]
[1770048701681,1.75950932,2384.0,2382.8,0.52457971]
[1770048701977,13.40062608,2384.2,2382.8,0.52457971]
[1770048702379,1.04855707,2384.3,2382.8,0.54566697]
[1770048702610,13.40058157,2384.3,2382.8,0.52457971]
[1770048702786,12.3520245,2384.1,2382.8,0.52457971]
[1770048703309,2.55310683,2384.3,2382.8,0.52457971]
[1770048703310,1.0484249,2384.6,2383.5,1.0488777]
[1770048703512,0.21757748,2384.5,2383.6,0.52443885]
[1770048703694,1.04824874,2385.0,2383.6,0.52443885]
[1770048704191,2.45235616,2385.1,2383.6,0.52443885]